[Event "Kadettallsvenskan 2018, sodra kvalet"]
[Site "Vegagatan 20, Gothenburg, Sweden"]
[Date "2018.04.15"]
[Round "6.4"]
[White "Hattab, Nuhad"]
[Black "Larsson, Mille"]
[Result "0-1"]
[TimeControl "45 minutes for the whole game + 10 seconds per move from move one."]
[WhiteFideId "1738992"]
[BlackFideId "1749137"]
[WhiteElo "1447"]
[BlackElo "1374"]

1. e4 {[%clk 00:45:19]} c5 {[%clk 00:45:00]} {[%emt 00:00:21]} 2. Nf3 {[%clk
00:45:26]} {[%emt 00:00:02]} d6 {[%clk 00:44:47]} {[%emt 00:00:24]} 3. d4
{[%clk 00:45:31]} {[%emt 00:00:03]} cxd4 {[%clk 00:44:43]} {[%emt 00:00:15]} 4.
Nxd4 {[%clk 00:45:38]} {[%emt 00:00:02]} Nf6 {[%clk 00:44:26]} {[%emt
00:00:28]} 5. Nc3 {[%clk 00:45:43]} {[%emt 00:00:03]} g6 {[%clk 00:43:33]}
{[%emt 00:01:05]} 6. Be3 {[%clk 00:45:28]} {[%emt 00:00:24]} Bg7 {[%clk
00:42:49]} {[%emt 00:00:54]} 7. f3 {[%clk 00:45:30]} {[%emt 00:00:06]} Nc6
{[%clk 00:42:53]} {[%emt 00:00:08]} 8. Bc4 {[%clk 00:45:29]} {[%emt 00:00:09]}
O-O {[%clk 00:42:30]} {[%emt 00:00:35]} 9. Qd2 {[%clk 00:45:36]} {[%emt
00:00:02]} e6 {[%clk 00:38:43]} {[%emt 00:03:59]} 10. O-O-O {[%clk 00:43:31]}
{[%emt 00:02:13]} d5 {[%clk 00:36:00]} {[%emt 00:02:54]} 11. exd5 {[%clk
00:42:21]} {[%emt 00:01:20]} exd5 {[%clk 00:35:55]} {[%emt 00:00:15]} 12. Be2
{[%clk 00:42:27]} {[%emt 00:00:02]} Re8 {[%clk 00:35:45]} {[%emt 00:00:22]} 13.
Bb5 {[%clk 00:35:01]} {[%emt 00:07:35]} Bd7 {[%clk 00:33:00]} {[%emt 00:02:56]}
14. Bxc6 {[%clk 00:34:11]} {[%emt 00:00:58]} bxc6 {[%clk 00:31:58]} {[%emt
00:01:13]} 15. Nb3 {[%clk 00:33:53]} {[%emt 00:00:27]} a5 {[%clk 00:31:09]}
{[%emt 00:01:00]} 16. Na4 {[%clk 00:32:50]} {[%emt 00:01:11]} Be6 {[%clk
00:27:24]} {[%emt 00:03:57]} 17. Bb6 {[%clk 00:31:23]} {[%emt 00:01:35]} Qd7
{[%clk 00:24:12]} {[%emt 00:03:25]} 18. Bxa5 {[%clk 00:31:10]} {[%emt
00:00:23]} Qb7 {[%clk 00:22:49]} {[%emt 00:01:34]} 19. Nb6 {[%clk 00:29:15]}
{[%emt 00:02:04]} Rab8 {[%clk 00:20:18]} {[%emt 00:02:41]} 20. Nc5 {[%clk
00:27:47]} {[%emt 00:01:37]} Qa7 {[%clk 00:19:47]} {[%emt 00:00:43]} 21. g4
{[%clk 00:21:47]} {[%emt 00:06:10]} Rxb6 {[%clk 00:17:40]} {[%emt 00:02:17]} 22.
Bxb6 {[%clk 00:19:47]} {[%emt 00:02:10]} Qxb6 {[%clk 00:17:42]} {[%emt
00:00:09]} 23. Nb3 {[%clk 00:18:22]} {[%emt 00:01:34]} Ra8 {[%clk 00:13:11]}
{[%emt 00:04:41]} 24. a3 {[%clk 00:16:35]} {[%emt 00:01:57]} c5 {[%clk
00:12:31]} {[%emt 00:00:50]} 25. Qf2 {[%clk 00:13:06]} {[%emt 00:03:39]} Nd7
{[%clk 00:12:01]} {[%emt 00:00:41]} 26. Qe3 {[%clk 00:09:16]} {[%emt 00:03:57]}
c4 {[%clk 00:11:00]} {[%emt 00:01:14]} 27. Qxb6 {[%clk 00:08:54]} {[%emt
00:00:31]} Nxb6 {[%emt 00:00:19]} 28. Nc5 {[%clk 00:08:10]} {[%emt 00:00:51]}
c3 {[%clk 00:09:35]} {[%emt 00:01:29]} 29. bxc3 {[%clk 00:07:40]} {[%emt
00:00:40]} Bxc3 {[%clk 00:08:04]} {[%emt 00:01:40]} 30. Nxe6 {[%clk 00:05:39]}
{[%emt 00:02:11]} Rxa3 {[%clk 00:07:35]} {[%emt 00:00:40]} 0-1

[Event "Kadettallsvenskan 2018, sodra kvalet"]
[Site "Vegagatan 20, Gothenburg, Sweden"]
[Date "2018.04.15"]
[Round "6.5"]
[White "Vu, Casper"]
[Black "Nordin, Oscar"]
[Result "1-0"]
[TimeControl "45 minutes for the whole game + 10 seconds per move from move one."]
[WhiteFideId "1743350"]
[BlackFideId "1742302"]
[WhiteElo "1262"]
[BlackElo "1359"]

1. e4 {[%clk 00:45:18]} {[%emt 00:00:02]} e5 {[%clk 00:40:05]} {[%emt
00:05:15]} 2. Nf3 {[%clk 00:45:22]} {[%emt 00:00:06]} Nc6 {[%clk 00:40:12]}
{[%emt 00:00:03]} 3. Bc4 {[%clk 00:45:29]} {[%emt 00:00:04]} Nf6 {[%clk
00:40:19]} {[%emt 00:00:03]} 4. d3 {[%clk 00:45:21]} {[%emt 00:00:17]} Bc5
{[%clk 00:40:23]} {[%emt 00:00:05]} 5. c3 {[%clk 00:45:12]} {[%emt 00:00:19]}
d6 {[%clk 00:40:26]} {[%emt 00:00:06]} 6. Bg5 {[%emt 00:01:02]} h6 {[%clk
00:40:30]} {[%emt 00:00:04]} 7. Bh4 {[%clk 00:44:27]} {[%emt 00:00:07]} O-O
{[%clk 00:40:35]} {[%emt 00:00:04]} 8. O-O {[%clk 00:44:28]} {[%emt 00:00:10]}
Be6 {[%clk 00:40:42]} {[%emt 00:00:02]} 9. Bb3 {[%clk 00:43:09]} {[%emt
00:01:29]} Bxb3 {[%clk 00:40:25]} {[%emt 00:00:25]} 10. Qxb3 {[%clk 00:43:10]}
{[%emt 00:00:11]} Rb8 {[%clk 00:40:12]} {[%emt 00:00:23]} 11. Nbd2 {[%clk
00:41:26]} {[%emt 00:01:55]} Qe7 {[%clk 00:39:03]} {[%emt 00:01:18]} 12. Rad1
{[%clk 00:37:42]} {[%emt 00:03:54]} Qe6 {[%clk 00:38:47]} {[%emt 00:00:26]} 13.
Rfe1 {[%clk 00:36:06]} {[%emt 00:01:46]} Qxb3 {[%clk 00:38:30]} {[%emt
00:00:26]} 14. Nxb3 {[%clk 00:36:00]} {[%emt 00:00:16]} Bb6 {[%clk 00:38:23]}
{[%emt 00:00:17]} 15. d4 {[%clk 00:35:07]} {[%emt 00:01:04]} exd4 {[%emt
00:00:24]} 16. Nfxd4 {[%emt 00:00:06]} Nxd4 {[%clk 00:37:56]} {[%emt 00:00:06]}
17. Nxd4 {[%clk 00:35:09]} {[%emt 00:00:09]} Rfe8 {[%clk 00:37:53]} {[%emt
00:00:13]} 18. Bxf6 {[%clk 00:33:21]} {[%emt 00:01:59]} gxf6 {[%clk 00:37:56]}
{[%emt 00:00:06]} 19. Rd3 {[%clk 00:31:57]} {[%emt 00:01:35]} Re7 {[%clk
00:37:57]} {[%emt 00:00:08]} 20. Nf5 {[%clk 00:31:54]} {[%emt 00:00:14]} Re5
{[%clk 00:37:23]} {[%emt 00:00:44]} 21. Nxh6+ {[%clk 00:30:23]} {[%emt
00:01:42]} Kf8 {[%clk 00:37:20]} {[%emt 00:00:12]} 22. Rg3 {[%clk 00:27:00]}
{[%emt 00:03:34]} Rg5 {[%clk 00:37:10]} {[%emt 00:00:19]} 23. Rh3 {[%clk
00:24:15]} {[%emt 00:02:56]} Re8 {[%clk 00:36:43]} {[%emt 00:00:36]} 24. Rf3
{[%clk 00:19:43]} {[%emt 00:04:43]} Rge5 {[%clk 00:35:59]} {[%emt 00:00:53]} 25.
Rg3 {[%clk 00:17:36]} {[%emt 00:02:17]} Rh5 {[%clk 00:35:20]} {[%emt 00:00:50]}
26. Rg8+ {[%clk 00:16:05]} {[%emt 00:01:42]} Ke7 {[%clk 00:35:26]} {[%emt
00:00:02]} 27. Nf5+ {[%clk 00:16:00]} {[%emt 00:00:16]} Kd7 {[%clk 00:35:29]}
{[%emt 00:00:06]} 28. Rxe8 {[%clk 00:15:52]} {[%emt 00:00:19]} Kxe8 {[%clk
00:35:36]} {[%emt 00:00:02]} 29. Ng7+ {[%clk 00:15:49]} {[%emt 00:00:14]} 1-0

[Event "Kadettallsvenskan 2018, sodra kvalet"]
[Site "Vegagatan 20, Gothenburg, Sweden"]
[Date "2018.04.15"]
[Round "6.6"]
[White "Olsson, William"]
[Black "Bensryd, Hampus"]
[Result "1-0"]
[TimeControl "45 minutes for the whole game + 10 seconds per move from move one."]
[WhiteFideId "1741721"]
[BlackFideId "1738330"]
[WhiteElo "2178"]
[BlackElo "1918"]

1. Nf3 {[%clk 00:45:16]} {[%emt 00:00:04]} Nc6 {[%clk 00:43:58]} {[%emt
00:01:22]} 2. d4 {[%clk 00:45:04]} {[%emt 00:00:22]} d5 {[%clk 00:44:05]}
{[%emt 00:00:04]} 3. c4 {[%clk 00:44:54]} {[%emt 00:00:20]} e5 {[%clk
00:43:34]} {[%emt 00:00:42]} 4. dxe5 {[%clk 00:42:47]} {[%emt 00:02:15]} Bb4+
{[%clk 00:43:05]} {[%emt 00:00:39]} 5. Bd2 {[%clk 00:42:06]} {[%emt 00:00:51]}
dxc4 {[%clk 00:41:31]} {[%emt 00:01:45]} 6. e3 {[%clk 00:40:34]} {[%emt
00:01:41]} Be6 {[%clk 00:41:27]} {[%emt 00:00:14]} 7. a3 {[%clk 00:40:09]}
{[%emt 00:00:35]} Ba5 {[%clk 00:38:44]} {[%emt 00:02:53]} 8. Qa4 {[%clk
00:38:30]} {[%emt 00:01:49]} Qd5 {[%clk 00:37:46]} {[%emt 00:01:09]} 9. Bxa5
{[%clk 00:35:15]} {[%emt 00:03:23]} Qxa5+ {[%clk 00:37:10]} {[%emt 00:00:48]}
10. Qxa5 {[%clk 00:35:20]} {[%emt 00:00:04]} Nxa5 {[%clk 00:37:11]} {[%emt
00:00:10]} 11. Nbd2 {[%clk 00:35:17]} {[%emt 00:00:12]} b5 {[%clk 00:34:59]}
{[%emt 00:02:22]} 12. Nd4 {[%clk 00:34:00]} {[%emt 00:01:26]} Bd7 {[%clk
00:34:57]} {[%emt 00:00:13]} 13. Ne4 {[%clk 00:32:43]} {[%emt 00:01:26]} Nb7
{[%clk 00:32:30]} {[%emt 00:02:37]} 14. a4 {[%clk 00:31:13]} {[%emt 00:01:40]}
c6 {[%clk 00:28:29]} {[%emt 00:04:11]} 15. Be2 {[%clk 00:29:18]} {[%emt
00:02:05]} Ne7 {[%clk 00:27:32]} {[%emt 00:01:07]} 16. O-O {[%clk 00:28:50]}
{[%emt 00:00:39]} O-O {[%clk 00:27:02]} {[%emt 00:00:40]} 17. b3 {[%clk
00:25:24]} {[%emt 00:03:35]} cxb3 {[%clk 00:25:57]} {[%emt 00:01:15]} 18. axb5
{[%clk 00:25:05]} {[%emt 00:00:29]} cxb5 {[%clk 00:25:47]} {[%emt 00:00:21]} 19.
Nxb5 {[%clk 00:23:05]} {[%emt 00:02:09]} Nc6 {[%clk 00:23:31]} {[%emt
00:02:26]} 20. Rfb1 {[%clk 00:20:27]} {[%emt 00:02:16]} Nxe5 {[%clk 00:22:16]}
{[%emt 00:01:57]} 21. Rxb3 {[%clk 00:20:19]} {[%emt 00:00:17]} Rfc8 {[%clk
00:19:14]} {[%emt 00:03:12]} 22. h3 {[%clk 00:18:04]} {[%emt 00:02:27]} a5
{[%clk 00:16:40]} {[%emt 00:02:44]} 23. Rba3 {[%clk 00:15:45]} {[%emt
00:02:28]} Rc2 {[%clk 00:14:59]} {[%emt 00:01:50]} 24. Nbc3 {[%clk 00:11:50]}
{[%emt 00:04:04]} Bc6 {[%clk 00:14:05]} {[%emt 00:01:06]} 25. Bd1 {[%clk
00:11:12]} {[%emt 00:00:47]} Rb2 {[%clk 00:13:54]} {[%emt 00:00:22]} 26. Bb3
{[%clk 00:09:04]} {[%emt 00:02:18]} Kf8 {[%clk 00:12:35]} {[%emt 00:01:29]} 27.
Na4 {[%clk 00:08:24]} {[%emt 00:00:48]} Rxb3 {[%clk 00:12:30]} {[%emt
00:00:17]} 28. Rxb3 {[%clk 00:08:21]} {[%emt 00:00:12]} Bxe4 {[%clk 00:12:37]}
{[%emt 00:00:04]} 29. f3 {[%clk 00:08:15]} {[%emt 00:00:16]} Bc6 {[%clk
00:12:30]} {[%emt 00:00:17]} 30. Kf2 {[%clk 00:07:35]} {[%emt 00:00:50]} Ke8
{[%clk 00:12:04]} {[%emt 00:00:36]} 31. Rc3 {[%clk 00:06:05]} {[%emt 00:01:38]}
Kd7 {[%clk 00:11:43]} {[%emt 00:00:32]} 32. Nb6+ {[%clk 00:06:10]} {[%emt
00:00:04]} 1-0

[Event "Kadettallsvenskan 2018, sodra kvalet"]
[Site "Vegagatan 20, Gothenburg, Sweden"]
[Date "2018.04.15"]
[Round "6.7"]
[White "Morell, Ludvig"]
[Black "Rasti, Arvin"]
[Result "0-1"]
[TimeControl "45 minutes for the whole game + 10 seconds per move from move one."]
[WhiteFideId "1736779"]
[BlackFideId "1741160"]
[WhiteElo "1517"]
[BlackElo "1920"]

1. e4 {[%clk 00:45:17]} {[%emt 00:00:02]} c5 {[%clk 00:45:12]} {[%emt
00:00:08]} 2. Nf3 {[%clk 00:45:23]} {[%emt 00:00:05]} d6 {[%clk 00:45:15]}
{[%emt 00:00:07]} 3. d4 {[%clk 00:45:30]} {[%emt 00:00:03]} cxd4 {[%clk
00:45:21]} {[%emt 00:00:05]} 4. Nxd4 {[%clk 00:45:37]} {[%emt 00:00:03]} Nf6
{[%clk 00:45:25]} {[%emt 00:00:06]} 5. Nc3 {[%clk 00:45:43]} {[%emt 00:00:03]}
a6 {[%clk 00:45:33]} {[%emt 00:00:03]} 6. Be3 {[%clk 00:45:50]} {[%emt
00:00:03]} e5 {[%clk 00:45:27]} {[%emt 00:00:16]} 7. Nb3 {[%clk 00:45:56]}
{[%emt 00:00:03]} Be7 {[%clk 00:45:26]} {[%emt 00:00:11]} 8. f3 {[%clk
00:46:00]} {[%emt 00:00:06]} h5 {[%clk 00:45:19]} {[%emt 00:00:17]} 9. Qd2
{[%clk 00:46:01]} {[%emt 00:00:09]} Be6 {[%clk 00:45:10]} {[%emt 00:00:18]} 10.
h3 {[%clk 00:43:32]} {[%emt 00:02:39]} Nbd7 {[%clk 00:43:51]} {[%emt 00:01:30]}
11. Be2 {[%clk 00:41:54]} {[%emt 00:01:48]} Rc8 {[%clk 00:43:20]} {[%emt
00:00:40]} 12. Bg5 {[%clk 00:38:47]} {[%emt 00:03:14]} Qc7 {[%clk 00:39:28]}
{[%emt 00:04:05]} 13. Bd1 {[%clk 00:27:04]} {[%emt 00:11:54]} Nb6 {[%clk
00:35:44]} {[%emt 00:03:53]} 14. Bxf6 {[%clk 00:21:27]} {[%emt 00:05:47]} Bxf6
{[%clk 00:35:39]} {[%emt 00:00:15]} 15. Be2 {[%clk 00:20:45]} {[%emt 00:00:52]}
Bh4+ {[%clk 00:35:15]} {[%emt 00:00:34]} 16. Kd1 {[%clk 00:19:20]} {[%emt
00:01:36]} d5 {[%clk 00:32:59]} {[%emt 00:02:26]} 17. exd5 {[%clk 00:17:12]}
{[%emt 00:02:18]} Bxd5 {[%clk 00:32:56]} {[%emt 00:00:12]} 18. Nxd5 {[%clk
00:16:34]} {[%emt 00:00:48]} Nxd5 {[%clk 00:32:57]} {[%emt 00:00:10]} 19. Bd3
{[%clk 00:16:37]} {[%emt 00:00:05]} Qb6 {[%clk 00:31:32]} {[%emt 00:01:36]} 20.
Qe2 {[%clk 00:12:00]} {[%emt 00:04:46]} Ne3+ {[%clk 00:30:28]} {[%emt
00:01:15]} 21. Kc1 {[%clk 00:10:35]} {[%emt 00:01:36]} O-O {[%clk 00:29:31]}
{[%emt 00:01:06]} 22. g4 {[%clk 00:08:47]} {[%emt 00:01:59]} Bg5 {[%clk
00:28:52]} {[%emt 00:00:48]} 23. h4 {[%clk 00:07:59]} {[%emt 00:00:59]} Nxc2+
{[%clk 00:28:27]} {[%emt 00:00:34]} 24. Kb1 {[%clk 00:06:32]} {[%emt 00:01:38]}
Nxa1 {[%clk 00:27:57]} {[%emt 00:00:40]} 25. Kxa1 {[%clk 00:05:28]} {[%emt
00:01:14]} Bf4 {[%clk 00:24:58]} {[%emt 00:03:08]} 26. gxh5 {[%clk 00:04:54]}
{[%emt 00:00:45]} Qe3 {[%clk 00:24:51]} {[%emt 00:00:17]} 27. Qf1 {[%clk
00:03:47]} {[%emt 00:01:18]} Rfd8 {[%clk 00:24:20]} {[%emt 00:00:41]} 28. Be4
{[%clk 00:03:38]} {[%emt 00:00:18]} b5 {[%clk 00:23:38]} {[%emt 00:00:52]} 29.
Qg2 {[%clk 00:03:04]} {[%emt 00:00:45]} Rd6 {[%clk 00:23:13]} {[%emt 00:00:35]}
30. Rg1 {[%clk 00:03:01]} {[%emt 00:00:11]} Bh6 {[%clk 00:23:21]} {[%emt
00:00:04]} 31. Bf5 {[%clk 00:01:58]} {[%emt 00:01:11]} Rcd8 {[%clk 00:23:00]}
{[%emt 00:00:31]} 32. Bc2 {[%clk 00:01:54]} {[%emt 00:00:14]} Rd2 {[%clk
00:22:09]} {[%emt 00:01:02]} 33. Nxd2 {[%clk 00:01:07]} {[%emt 00:00:56]} Rxd2
{[%clk 00:22:15]} {[%emt 00:00:04]} 34. Qf1 {[%clk 00:00:49]} {[%emt 00:00:28]}
Rxc2 {[%clk 00:22:17]} {[%emt 00:00:09]} 35. Kb1 {[%clk 00:00:53]} {[%emt
00:00:06]} Qd2 {[%clk 00:22:12]} {[%emt 00:00:14]} 36. Qd1 {[%clk 00:00:22]}
{[%emt 00:00:41]} Rxb2+ {[%clk 00:22:15]} {[%emt 00:00:08]} 37. Ka1 {[%clk
00:00:31]} {[%emt 00:00:01]} Rxa2+ {[%clk 00:22:17]} {[%emt 00:00:09]} 38. Kb1
{[%clk 00:00:39]} {[%emt 00:00:01]} Qb2# {[%clk 00:22:21]} {[%emt 00:00:06]}
0-1

[Event "Kadettallsvenskan 2018, sodra kvalet"]
[Site "Vegagatan 20, Gothenburg, Sweden"]
[Date "2018.04.15"]
[Round "6.8"]
[White "Torngren, Gustav"]
[Black "Nord, Alexander"]
[Result "1-0"]
[TimeControl "45 minutes for the whole game + 10 seconds per move from move one."]
[WhiteFideId "1728970"]
[BlackFideId "1738135"]
[WhiteElo "1906"]
[BlackElo "1763"]

1. c4 {[%clk 00:45:16]} {[%emt 00:00:03]} e5 {[%clk 00:45:13]} {[%emt
00:00:08]} 2. b3 {[%clk 00:45:20]} {[%emt 00:00:06]} Nc6 {[%clk 00:44:20]}
{[%emt 00:01:03]} 3. Bb2 {[%clk 00:45:28]} {[%emt 00:00:02]} g6 {[%clk
00:43:44]} {[%emt 00:00:45]} 4. Nf3 {[%clk 00:44:18]} {[%emt 00:01:20]} Bg7
{[%clk 00:43:13]} {[%emt 00:00:41]} 5. d3 {[%clk 00:44:19]} {[%emt 00:00:10]}
d6 {[%clk 00:42:51]} {[%emt 00:00:32]} 6. e3 {[%clk 00:44:21]} {[%emt
00:00:07]} Nge7 {[%clk 00:42:18]} {[%emt 00:00:43]} 7. Be2 {[%clk 00:44:21]}
{[%emt 00:00:10]} O-O {[%clk 00:41:58]} {[%emt 00:00:29]} 8. Nc3 {[%clk
00:41:21]} {[%emt 00:03:10]} Re8 {[%clk 00:37:38]} {[%emt 00:04:30]} 9. a3
{[%clk 00:40:38]} {[%emt 00:00:53]} a5 {[%clk 00:36:52]} {[%emt 00:00:56]} 10.
Qc2 {[%clk 00:39:40]} {[%emt 00:01:09]} d5 {[%clk 00:35:44]} {[%emt 00:01:18]}
11. cxd5 {[%clk 00:38:46]} {[%emt 00:01:03]} Nxd5 {[%clk 00:35:38]} {[%emt
00:00:16]} 12. O-O {[%clk 00:38:36]} {[%emt 00:00:20]} Nxc3 {[%clk 00:31:38]}
{[%emt 00:04:10]} 13. Bxc3 {[%clk 00:37:42]} {[%emt 00:01:04]} Qd6 {[%clk
00:29:50]} {[%emt 00:01:59]} 14. Nd2 {[%clk 00:37:34]} {[%emt 00:00:19]} Be6
{[%clk 00:29:15]} {[%emt 00:00:45]} 15. Nc4 {[%clk 00:35:59]} {[%emt 00:01:45]}
Bxc4 {[%clk 00:29:18]} {[%emt 00:00:07]} 16. bxc4 {[%clk 00:35:50]} {[%emt
00:00:19]} Rad8 {[%clk 00:28:23]} {[%emt 00:01:05]} 17. Qb2 {[%clk 00:34:31]}
{[%emt 00:01:28]} b6 {[%clk 00:28:08]} {[%emt 00:00:26]} 18. Rad1 {[%clk
00:34:12]} {[%emt 00:00:28]} h5 {[%clk 00:26:57]} {[%emt 00:01:21]} 19. Rd2
{[%clk 00:30:36]} {[%emt 00:03:46]} Bf8 {[%clk 00:23:08]} {[%emt 00:03:59]} 20.
Ra1 {[%clk 00:30:45]} {[%emt 00:00:01]} Ne7 {[%clk 00:21:32]} {[%emt 00:01:46]}
21. Bxe5 {[%clk 00:30:05]} {[%emt 00:00:49]} Qd7 {[%clk 00:20:48]} {[%emt
00:00:55]} 22. Bc3 {[%clk 00:30:04]} {[%emt 00:00:11]} Nf5 {[%clk 00:20:00]}
{[%emt 00:00:58]} 23. d4 {[%clk 00:29:37]} {[%emt 00:00:37]} Bh6 {[%clk
00:19:06]} {[%emt 00:01:04]} 24. Rd3 {[%clk 00:28:49]} {[%emt 00:00:57]} Qe7
{[%clk 00:17:33]} {[%emt 00:01:44]} 25. Bd2 {[%clk 00:26:34]} {[%emt 00:02:25]}
Bg7 {[%clk 00:17:12]} {[%emt 00:00:31]} 26. Bf1 {[%clk 00:25:30]} {[%emt
00:01:14]} Qe4 {[%clk 00:16:53]} {[%emt 00:00:28]} 27. Bc3 {[%clk 00:23:34]}
{[%emt 00:02:07]} Qh4 {[%clk 00:15:49]} {[%emt 00:01:14]} 28. Rc1 {[%clk
00:21:35]} {[%emt 00:02:09]} Nd6 {[%clk 00:15:21]} {[%emt 00:00:37]} 29. Be1
{[%clk 00:19:10]} {[%emt 00:02:35]} Qe7 {[%clk 00:13:49]} {[%emt 00:01:43]} 30.
c5 {[%clk 00:19:04]} {[%emt 00:00:17]} bxc5 {[%clk 00:13:52]} {[%emt 00:00:07]}
31. Rxc5 {[%clk 00:19:07]} {[%emt 00:00:07]} Nf5 {[%clk 00:13:21]} {[%emt
00:00:41]} 32. Bc3 {[%clk 00:17:16]} {[%emt 00:01:59]} Rb8 {[%clk 00:12:57]}
{[%emt 00:00:36]} 33. Qc1 {[%clk 00:16:31]} {[%emt 00:00:55]} a4 {[%clk
00:12:38]} {[%emt 00:00:28]} 34. Bb4 {[%clk 00:16:29]} {[%emt 00:00:13]} Qe6
{[%clk 00:11:44]} {[%emt 00:01:04]} 35. Rxc7 {[%clk 00:15:11]} {[%emt
00:01:28]} Bf8 {[%clk 00:11:29]} {[%emt 00:00:25]} 36. Bxf8 {[%clk 00:14:32]}
{[%emt 00:00:49]} Rxf8 {[%clk 00:11:37]} {[%emt 00:00:02]} 37. Rdc3 {[%clk
00:14:14]} {[%emt 00:00:29]} h4 {[%clk 00:09:29]} {[%emt 00:02:18]} 38. h3
{[%clk 00:13:42]} {[%emt 00:00:42]} Qa2 {[%clk 00:07:31]} {[%emt 00:02:08]} 39.
Rc8 {[%clk 00:08:13]} {[%emt 00:05:40]} Rb1 {[%clk 00:07:13]} {[%emt 00:00:27]}
40. Rxf8+ {[%clk 00:08:22]} {[%emt 00:00:02]} Kxf8 {[%clk 00:07:22]} {[%emt
00:00:01]} 41. Rc8+ {[%clk 00:08:17]} {[%emt 00:00:15]} Kg7 {[%clk 00:07:30]}
42. Qc5 {[%clk 00:08:09]} {[%emt 00:00:19]} Qe6 {[%clk 00:03:36]} {[%emt
00:04:05]} 43. Qf8+ {[%clk 00:08:16]} {[%emt 00:00:03]} 1-0